[Event "FIDE World School-ch G-15 2025"]
[Site "Vrnjacka Banja"]
[Date "2025.03.24"]
[Round "5.6"]
[White "Biro, Beata"]
[Black "Margad, Munkhpurev"]
[Result "1-0"]
[Annotator "TA"]
[ECO "C08"]
[WhiteElo "1877"]
[BlackElo "1925"]
[PlyCount "103"]
[EventDate "2025.03.19"]
[EventType "swiss"]
[EventCountry "SRB"]
[SourceTitle "playchess.com"]
[Source "ChessBase"]
[SourceQuality "1"]
[TimeControl "5400+30"]

{[%evp 17,103,80,87,65,47,3,11,-7,20,0,0,-32,0,0,2,0,60,50,73,76,145,130,169,162,228,154,239,235,238,210,410,416,414,414,415,406,412,416,533,513,548,529,528,521,782,715,689,430,458,457,455,452,461,462,439,454,483,485,554,625,1221,999,889,578,965,964,938,929,859,862,778,770,1076,743,871,694,1759,995,2451,2318,1966,2541,2446,2318,6714,6096,6606,6678]} 1. e4 {[%emt 0:00:03]} e6 {[%emt 0:00:12]} 2. d4 {[%emt 0:00:08]} d5 {[%emt 0:00:05]} 3. Nd2 {[%emt 0:00:13]} c5 {[%emt 0:00:17]} 4. Ngf3 {[%emt 0:00:18]} Nc6 {[%emt 0:00:44]} 5. exd5 {[%emt 0:00:41]} exd5 {[%emt 0:00:06]} 6. Bb5 {[%emt 0:00:22]} Nf6 {[%emt 0:00:50]} 7. O-O {[%emt 0:01:52]} Be7 {[%emt 0:00:21]} 8. dxc5 {[%emt 0:00:57]} O-O {[%emt 0:00:27]} 9. Nb3 {[%emt 0:04:56]} Bg4 {[%emt 0:03:27]} 10. Bf4 {[%emt 0:07:26] C08: French Tarrasch: 3...c5 4 exd5 exd5 sidelines.} Ne4 {[%emt 0:04:01]} 11. Bxc6 {[%emt 0:05:17]} bxc6 {[%emt 0:00:14]} 12. Be3 $146 {[%emt 0:00:44] The position is equal.} (12. Nbd4 Rc8 13. b4 Bf6 14. Qd3 Bh5 15. Rae1 Bg6 16. Qe3 Re8 17. c3 Qd7 18. Qc1 {1-0 Sheremet,A (1940)-Panasenko,A EU-ch U12 Batumi 2010 (2)}) 12... Qc7 {[%emt 0:01:33] Black sacrificed a pawn} 13. h3 {[%emt 0:02:45]} Bh5 {[%emt 0:02:09]} 14. c3 {[%emt 0:03:30][%cal Bc2c3,Bc3c4][%mdl 32]} Rae8 {[%emt 0:02:26]} 15. Bd4 {[%emt 0:04:32]} f5 {[%emt 0:06:04]} 16. Qd3 {[%emt 0:02:30]} Bxf3 {[%emt 0:01:44]} (16... a5 $11) 17. Qxf3 $14 {[%emt 0:00:11]} f4 {[%emt 0:10:54]} 18. Rfe1 {[%emt 0:06:21] White now steadily converts the win.} g6 {[%emt 0:24:45]} ({Black should play} 18... Bd8) 19. c4 $16 {[%emt 0:10:43]} Ng5 {[%emt 0:07:08]} 20. Qd3 {[%emt 0:00:57]} f3 {[%emt 0:02:25]} (20... Qd7 $142) 21. Be3 {[%emt 0:06:06]} Qe5 {[%emt 0:16:22]} (21... fxg2 $16 22. Bxg5 (22. cxd5 $2 Nf3+ 23. Kxg2 Qh2+ 24. Kf1 Bh4 $19) 22... Bxg5 23. Rxe8 (23. cxd5 Qf7 $14) 23... Rxe8 24. cxd5 (24. Kxg2 Re5 $14) 24... Re5) 22. cxd5 $18 {[%emt 0:09:41]} cxd5 {[%emt 0:03:01]} 23. Rad1 {[%emt 0:02:15]} Rd8 $2 {[%emt 0:02:14]} (23... fxg2 24. Bxg5 (24. Qxd5+ $2 {loses.} Qxd5 25. Rxd5 Nf3+ 26. Kxg2 Nxe1+ $19) (24. Kxg2 Nf3 $19) 24... Qxg5 25. Qxd5+ Qxd5 26. Rxd5 Bf6 27. Rxe8 Rxe8) 24. Nd4 {[%emt 0:06:05]} Qf6 {[%emt 0:08:15]} 25. Bxg5 {[%emt 0:01:49]} Qxg5 {[%emt 0:00:05][%csl Gf3][%cal Rg5g2] [#]} 26. Nxf3 {[%emt 0:00:06]} Qf6 {[%emt 0:00:04]} 27. b4 {[%emt 0:01:09]} Rd7 {[%emt 0:01:08]} 28. Re2 {[%emt 0:03:49] White is clearly winning.} Rfd8 {[%emt 0:01:58]} 29. Rde1 {[%emt 0:01:39]} Bf8 {[%emt 0:00:33][%cal Be7f8,Bf8g7,Bg7c3][%mdl 32]} 30. Nd4 {[%emt 0:05:17]} Bg7 {[%emt 0:00:47]} 31. Ne6 {[%emt 0:00:34][%cal Oc5c6]} Rc8 {[%emt 0:00:50]} 32. b5 {[%emt 0:01:16]} Qc3 {[%emt 0:00:12]} 33. Qxc3 {[%emt 0:01:34]} Bxc3 {[%emt 0:00:08]} 34. Rd1 {[%emt 0:01:06]} d4 {[%emt 0:00:12]} 35. Rd3 {[%emt 0:00:50]} Rd5 {[%emt 0:00:30]} 36. a4 {[%emt 0:01:08]} Kf7 {[%emt 0:00:50]} 37. c6 {[%emt 0:10:10][%cal Bc5c6,Bc6c7][%mdl 32]} g5 {[%emt 0:00:25]} 38. Re4 {[%emt 0:00:00]} Re8 {[%emt 0:01:03] [#]} 39. c7 $1 {[%emt 0:01:00]} Rc8 {[%emt 0:00:46]} 40. Nd8+ {[%emt 0:00:00]} Kg6 {[%emt 0:00:44]} 41. Re6+ {[%emt 0:00:00]} Kg7 {[%emt 0:00:03]} 42. Re7+ {[%emt 0:00:00]} Kg6 {[%emt 0:00:13]} 43. Nc6 {[%emt 0:00:00]} Rc5 {[%emt 0:00:30]} 44. Rd7 {[%emt 0:00:00] and Ne7+ should not be overlooked} Kh6 {[%emt 0:00:40]} 45. Kh2 {[%emt 0:00:00]} Rc4 {[%emt 0:00:06]} 46. a5 {[%emt 0:00:00][%cal Ba4a5,Ba5a6][%mdl 32]} Rc5 {[%emt 0:00:37]} 47. a6 {[%emt 0:00:00]} Rc4 {[%emt 0:00:14]} 48. Nxa7 {[%emt 0:00:07]} R8xc7 {[%emt 0:00:22]} 49. Rxc7 {[%emt 0:00:02]} Rxc7 {[%emt 0:00:04]} 50. b6 {[%emt 0:00:07][%cal Bb5b6,Bb6b7][%mdl 32]} Re7 {[%emt 0:00:08]} 51. b7 {[%emt 0:00:05]} Re8 {[%emt 0:00:02]} 52. Nc8 {[%emt 0:00:05] Weighted Error Value: White=0.23 (precise) /Black=0.43  Mistake:       	---       	Black=5      Inaccurate:     	White=3     	Black=4      OK:         	White=11    	Black=4      Best:        	White=3     	Black=1} 1-0